bitfinex/quotes_BTCUSD_20250331
["timestamp","ask_amount","ask_price","bid_price","bid_amount"]
[1743415075628,0.001,81498.0,81497.0,0.60928086]
[1743415075856,0.001,81498.0,81497.0,0.62382171]
[1743415076060,0.001,81498.0,81497.0,0.66882171]
[1743415076270,0.01921074,81510.0,81509.0,0.257639]
[1743415076497,0.01921074,81510.0,81509.0,0.38024286]
[1743415076700,0.01921074,81510.0,81509.0,0.12260386]
[1743415076907,0.257618,81516.0,81506.0,0.245377]
[1743415076908,0.012268,81511.0,81506.0,0.245377]
[1743415077111,0.245364,81512.0,81509.0,0.245371]
[1743415077320,0.00910462,81512.0,81509.0,0.245371]
[1743415077531,0.245366,81511.0,81507.0,0.257645]
[1743415078139,0.245374,81508.0,81506.0,0.12260386]
[1743415078343,0.245373,81509.0,81508.0,0.14616]
[1743415079101,0.257641,81509.0,81508.0,0.14616]
[1743415080687,0.01920982,81510.0,81508.0,0.14616]
[1743415081014,0.01920982,81510.0,81509.0,0.45634286]
[1743415081216,0.01920982,81510.0,81509.0,0.52018371]
[1743415081569,0.4134,81518.0,81517.0,0.257614]
[1743415081748,0.4134,81518.0,81517.0,0.38021786]
[1743415082156,0.43260785,81518.0,81517.0,0.38021786]
[1743415082358,0.44501181,81518.0,81517.0,0.38021786]
[1743415082800,0.44501181,81518.0,81517.0,0.37137291]
[1743415083004,0.69035581,81518.0,81517.0,0.00342205]
[1743415083251,0.70262281,81518.0,81517.0,0.00342205]
[1743415083603,0.44501181,81518.0,81517.0,0.24876905]
[1743415084005,0.44501181,81518.0,81517.0,0.00342205]
[1743415084443,0.69035581,81518.0,81517.0,0.00342205]
[1743415085150,0.69035581,81518.0,81517.0,0.00346205]
[1743415085571,0.44501181,81518.0,81517.0,0.00346205]
[1743415085774,0.69035581,81518.0,81517.0,0.00346205]
[1743415086330,0.44501181,81518.0,81517.0,0.00346205]
[1743415086537,0.03161181,81518.0,81517.0,0.24880905]
[1743415086759,0.03161181,81518.0,81517.0,0.00346205]
[1743415087001,0.03161181,81518.0,81517.0,0.24880905]
[1743415087384,0.01240396,81518.0,81517.0,0.24880905]
[1743415087558,0.245336,81521.0,81518.0,0.245343]
[1743415088028,0.25440082,81522.0,81519.0,0.24534]
[1743415088238,0.25439982,81522.0,81519.0,0.24534]
[1743415088439,0.2664635,81522.0,81519.0,0.24534]
[1743415088647,0.245341,81520.0,81517.0,0.00246205]
[1743415089065,0.245343,81519.0,81517.0,0.00246205]
[1743415089265,0.2664635,81522.0,81519.0,0.245341]
[1743415089843,0.0211305,81522.0,81520.0,0.245337]
[1743415090044,0.4134,81524.0,81523.0,0.257595]
[1743415090430,0.42545419,81524.0,81523.0,0.257595]
[1743415090827,0.44466118,81524.0,81522.0,0.245331]
[1743415091027,0.245329,81523.0,81520.0,0.245337]
[1743415091234,0.44466118,81524.0,81522.0,0.245331]
[1743415091443,0.68998818,81524.0,81521.0,0.245335]
[1743415092453,0.27658818,81524.0,81522.0,4e-05]
[1743415092648,0.04037226,81524.0,81522.0,0.245372]
[1743415092854,0.04137226,81524.0,81522.0,0.245372]
[1743415093063,0.04137226,81524.0,81522.0,0.26206444]
[1743415093268,0.04137226,81524.0,81522.0,0.245372]
[1743415093666,0.04037226,81524.0,81522.0,0.245372]
[1743415093842,0.04037226,81524.0,81523.0,0.245329]
[1743415094042,0.04037226,81524.0,81523.0,0.257595]
[1743415094660,0.03126118,81524.0,81523.0,0.50389886]
[1743415095078,0.03226118,81524.0,81523.0,0.50389886]
[1743415095283,0.00909817,81537.0,81523.0,0.50617371]
[1743415095628,0.012261,81553.0,81542.0,0.012263]
[1743415095831,0.245254,81548.0,81543.0,0.14608]
[1743415096040,0.245264,81545.0,81543.0,0.14608]
[1743415096245,0.17298002,81553.0,81540.0,0.14608]
[1743415096246,0.012263,81546.0,81540.0,0.14608]
[1743415096467,0.012263,81545.0,81540.0,0.158343]
[1743415096885,0.245268,81544.0,81540.0,0.15876505]
[1743415097062,0.245275,81541.0,81540.0,0.14650205]
[1743415097638,0.257538,81541.0,81540.0,0.00042205]
[1743415098542,0.257538,81541.0,81540.0,0.00142205]
[1743415098945,0.257538,81541.0,81540.0,0.00342205]
[1743415099407,0.257538,81541.0,81540.0,0.00042205]
[1743415099747,0.257538,81541.0,81540.0,0.00542205]
[1743415099925,0.245272,81543.0,81540.0,0.00542205]
[1743415100077,0.245273,81542.0,81540.0,0.00542205]
[1743415100487,0.01920281,81543.0,81542.0,0.245272]
[1743415101030,0.01920281,81543.0,81542.0,0.38013886]
[1743415102022,0.3121564,81553.0,81552.0,0.257504]
[1743415102195,0.3121564,81553.0,81552.0,0.403544]
[1743415102731,0.0121564,81553.0,81552.0,0.403544]
[1743415103089,0.27384068,81555.0,81552.0,0.403544]
[1743415103411,0.02860768,81555.0,81553.0,0.245239]
[1743415104179,0.02860768,81555.0,81554.0,0.257497]
[1743415104378,0.04107314,81555.0,81554.0,0.257497]
[1743415104902,0.04107314,81555.0,81553.0,0.245239]
[1743415105104,0.28630714,81555.0,81553.0,0.245239]
[1743415105311,0.28630714,81555.0,81553.0,0.01669244]
[1743415105548,0.04107314,81555.0,81554.0,0.246236]
[1743415105766,0.04107314,81555.0,81554.0,0.001]
[1743415105973,0.28630614,81555.0,81552.0,0.403543]
[1743415106418,0.28630614,81555.0,81553.0,0.001]
[1743415107499,0.02187147,81555.0,81553.0,0.246239]
[1743415107726,0.24523,81556.0,81553.0,0.245239]
[1743415108109,0.245235,81555.0,81552.0,0.392281]
[1743415108609,0.245235,81555.0,81552.0,0.391281]
[1743415108856,0.26985047,81556.0,81553.0,0.001]
[1743415109084,0.01235947,81556.0,81555.0,0.257494]
[1743415109289,0.4134,81572.0,81571.0,0.257444]
[1743415109479,0.0133764,81579.0,81572.0,0.012259]
[1743415109684,0.004,81579.0,81578.0,0.257422]
[1743415110541,0.01647518,81579.0,81578.0,0.25784405]
[1743415110787,0.004,81579.0,81578.0,0.25784405]
[1743415111001,0.004,81579.0,81578.0,0.38044791]
[1743415111208,0.004,81579.0,81578.0,0.39498876]
[1743415111386,1e-06,81579.0,81578.0,0.39498876]
[1743415112642,1e-06,81579.0,81578.0,0.39698876]
[1743415112964,1e-06,81579.0,81578.0,0.40198876]
[1743415113979,1e-06,81579.0,81578.0,0.48038876]
[1743415114186,1e-06,81579.0,81578.0,0.89398876]
[1743415114387,1e-06,81594.0,81593.0,0.257374]
[1743415114589,1e-06,81594.0,81593.0,1.88799498]
[1743415115147,1e-06,81594.0,81593.0,1.74199498]
[1743415115356,1e-06,81594.0,81593.0,1.88795498]
[1743415116055,1e-06,81594.0,81593.0,1.89395498]
[1743415116215,1e-06,81594.0,81593.0,1.89795498]
[1743415116389,1e-06,81594.0,81593.0,1.89395498]
[1743415117280,1e-06,81594.0,81593.0,1.88795498]
[1743415117723,1e-06,81594.0,81593.0,1.89995498]
[1743415122019,1e-06,81594.0,81593.0,1.91913898]
[1743415122229,0.004,81609.0,81593.0,1.90688398]
[1743415122427,0.002,81624.0,81623.0,0.27181985]
[1743415122637,0.002,81624.0,81623.0,2.40015998]
[1743415123857,0.002,81624.0,81623.0,2.40063246]
[1743415124797,0.002,81624.0,81623.0,2.38609161]
[1743415125646,0.002,81624.0,81623.0,2.39209161]
[1743415125991,0.00189875,81624.0,81623.0,2.39809161]
[1743415126529,0.00189875,81624.0,81623.0,2.25221161]
[1743415126739,0.00189875,81624.0,81623.0,2.39805161]
[1743415132738,0.00189875,81624.0,81623.0,2.39205161]
[1743415133212,0.00189875,81624.0,81623.0,2.39705161]
[1743415133961,0.00189875,81624.0,81623.0,2.25121161]
[1743415134179,0.00189875,81624.0,81623.0,2.39701161]
[1743415141010,0.00189875,81624.0,81623.0,2.25121161]
[1743415141144,0.00189875,81624.0,81623.0,2.39697161]
[1743415143460,0.00189875,81624.0,81623.0,2.41151246]
[1743415143666,0.00189875,81624.0,81623.0,2.48691246]
[1743415144490,0.00309087,81625.0,81623.0,2.53271246]
[1743415144637,0.004,81639.0,81638.0,0.27177285]
[1743415144848,0.0162181,81639.0,81638.0,1.76351298]
[1743415145367,0.004,81639.0,81638.0,1.76351298]
[1743415146051,0.004,81639.0,81638.0,1.76851298]
[1743415146478,0.004,81639.0,81638.0,1.77451298]
[1743415147075,0.004,81639.0,81638.0,1.85251298]
[1743415147484,0.016148,81639.0,81638.0,1.85251298]
[1743415147684,0.004,81639.0,81638.0,1.85251298]
[1743415149433,0.004,81639.0,81638.0,1.77451298]
[1743415150966,0.004,81639.0,81638.0,1.77447298]
[1743415151994,0.004,81639.0,81638.0,1.77451298]
[1743415153015,0.004,81639.0,81638.0,1.50274013]
[1743415153217,0.004,81639.0,81638.0,0.15676]
[1743415153218,0.261229,81639.0,81638.0,0.15676]
[1743415153632,0.2804077,81639.0,81638.0,0.15676]
[1743415154643,0.0231787,81639.0,81638.0,0.15676]
[1743415154846,0.2681587,81639.0,81638.0,0.27936386]
[1743415155058,0.2804077,81639.0,81638.0,0.15676]
[1743415155847,0.2681587,81639.0,81638.0,0.15676]
[1743415156257,0.2804077,81639.0,81638.0,0.15676]
[1743415156836,0.2804077,81639.0,81638.0,0.01104]
[1743415157351,0.261229,81639.0,81638.0,0.00604]
[1743415157557,0.261229,81639.0,81638.0,4e-05]
[1743415157761,0.261229,81639.0,81638.0,0.00104]
[1743415158593,0.261229,81639.0,81638.0,0.00704]
[1743415159130,0.261229,81639.0,81638.0,0.00104]
[1743415159354,0.261229,81639.0,81638.0,0.00304]
[1743415159948,0.256229,81639.0,81638.0,0.00304]
[1743415160507,0.27540895,81639.0,81638.0,0.00304]
[1743415160712,0.68880895,81639.0,81638.0,0.00304]
[1743415160912,0.81760895,81639.0,81638.0,0.00304]
[1743415162873,0.86507622,81639.0,81638.0,0.00304]
[1743415163470,0.82687819,81639.0,81638.0,0.00304]
[1743415167482,0.80769824,81639.0,81638.0,0.00304]
[1743415168080,0.798429,81639.0,81638.0,0.00304]
[1743415170366,0.81760979,81639.0,81638.0,0.00304]
[1743415172342,0.73850979,81639.0,81638.0,0.00304]
[1743415176281,1.03850979,81639.0,81638.0,0.00304]
[1743415176447,1.0766756,81639.0,81638.0,0.00304]
[1743415176610,1.03850979,81639.0,81638.0,0.00304]
[1743415177444,1.019329,81639.0,81638.0,0.00304]
[1743415178227,1.22503286,81639.0,81638.0,0.00304]
[1743415178431,1.26317786,81639.0,81638.0,0.00304]
[1743415179379,1.22503286,81639.0,81638.0,0.00304]
[1743415179626,1.22503286,81639.0,81638.0,0.00204]
[1743415180014,0.334876,81624.0,81623.0,0.00047248]
[1743415180222,1.048276,81624.0,81623.0,0.00047248]
[1743415180434,1.11516053,81624.0,81623.0,0.00047248]
[1743415181903,1.11516053,81624.0,81623.0,0.00247248]
[1743415182960,1.11516053,81624.0,81623.0,0.00347248]
[1743415183660,1.03756053,81624.0,81623.0,0.00347248]
[1743415183876,0.98986053,81624.0,81623.0,0.00347248]
[1743415186700,0.97760953,81624.0,81623.0,0.00347248]
[1743415186903,0.98986053,81624.0,81623.0,0.00347248]
[1743415187100,0.73258453,81624.0,81623.0,0.24850048]
[1743415187460,0.958425,81624.0,81623.0,0.00347248]
[1743415188439,0.970676,81624.0,81623.0,0.00347248]
[1743415188663,0.658425,81624.0,81623.0,0.00347248]
[1743415188842,0.670676,81624.0,81623.0,0.00347248]
[1743415189064,0.257276,81624.0,81623.0,0.00347248]
[1743415190238,0.557276,81624.0,81623.0,0.00347248]
[1743415195097,0.970676,81624.0,81623.0,0.00347248]
[1743415195308,1.05202101,81624.0,81623.0,0.00347248]
[1743415195537,0.245094,81602.0,81600.0,4e-05]
[1743415195768,0.245094,81602.0,81601.0,0.26832386]
[1743415196006,0.245089,81603.0,81601.0,0.26832386]
[1743415196177,0.245092,81602.0,81601.0,0.26832386]
[1743415196593,0.245092,81602.0,81601.0,0.12260386]
[1743415196786,0.557349,81601.0,81600.0,0.00051313]
[1743415197324,0.56666527,81601.0,81600.0,0.00051313]
[1743415198144,0.56666527,81601.0,81600.0,0.00151313]
[1743415199845,0.58585621,81601.0,81600.0,0.00151313]
[1743415200194,0.57653994,81601.0,81600.0,0.00151313]
[1743415201822,0.557349,81601.0,81600.0,0.00151313]
[1743415204022,0.67511256,81601.0,81600.0,0.00151313]
[1743415204380,0.633549,81601.0,81600.0,0.00151313]
[1743415205596,0.634549,81601.0,81600.0,0.00151313]
[1743415206235,0.558349,81601.0,81600.0,0.00051313]
[1743415206438,0.301,81601.0,81600.0,0.00051313]
[1743415206608,0.547095,81601.0,81600.0,0.00051313]
[1743415206791,0.559349,81601.0,81600.0,0.00051313]
[1743415206972,0.547095,81601.0,81600.0,0.00051313]
[1743415207193,0.001,81601.0,81600.0,0.46166899]
[1743415207401,0.001,81601.0,81600.0,0.47620984]
[1743415207641,0.002,81601.0,81600.0,0.47620984]
[1743415208042,0.001,81601.0,81600.0,0.47620984]
[1743415208598,0.01005402,81603.0,81602.0,0.257346]
[1743415208855,0.245068,81610.0,81606.0,0.245079]
[1743415209052,0.545072,81609.0,81607.0,0.12260386]
[1743415209389,0.245074,81608.0,81607.0,0.12260386]
[1743415209929,0.25510056,81608.0,81607.0,0.12260386]
[1743415210867,0.01002656,81608.0,81607.0,0.12260386]
[1743415211109,0.3,81611.0,81608.0,0.245073]
[1743415211246,0.3,81611.0,81609.0,0.26888386]
[1743415211247,0.545068,81610.0,81609.0,0.26888386]
[1743415212425,0.55479428,81610.0,81609.0,0.26888386]
[1743415212634,0.56704728,81610.0,81609.0,0.26888386]
[1743415213237,0.55479428,81610.0,81609.0,0.26888386]
[1743415214140,0.56704728,81610.0,81609.0,0.26888386]
[1743415214821,0.245089,81603.0,81601.0,1.22337627]
[1743415215031,0.245089,81603.0,81602.0,0.26872386]
[1743415215229,0.00972628,81610.0,81606.0,0.257331]
[1743415215467,0.3,81612.0,81609.0,0.257324]
[1743415215660,0.3,81612.0,81610.0,0.12260386]
[1743415215821,0.545062,81612.0,81610.0,0.12260386]
[1743415216027,0.557318,81611.0,81610.0,0.12260386]
[1743415217499,0.557318,81611.0,81601.0,1.22337627]
[1743415217500,0.257346,81602.0,81601.0,1.22337627]
[1743415217643,0.257346,81602.0,81601.0,1.49194013]
[1743415218050,0.257346,81602.0,81600.0,0.00051313]
[1743415218051,0.257349,81601.0,81600.0,0.00051313]
[1743415218245,0.557349,81601.0,81600.0,0.00051313]
[1743415219322,0.557349,81601.0,81600.0,0.00351313]
[1743415219741,0.557349,81601.0,81600.0,0.00451313]
[1743415219944,0.557349,81601.0,81600.0,0.00151313]
[1743415220118,0.557349,81601.0,81600.0,0.00251313]
[1743415220487,0.57653827,81601.0,81600.0,0.00251313]
[1743415221157,0.31918927,81601.0,81600.0,0.00251313]
[1743415221357,0.56428427,81601.0,81600.0,0.12511699]
[1743415221680,0.57653827,81601.0,81600.0,0.12511699]
[1743415222243,0.31918927,81601.0,81600.0,0.12511699]
[1743415222677,0.245083,81605.0,81602.0,0.245091]
[1743415222877,0.012253,81610.0,81603.0,0.257341]
[1743415223083,0.01005815,81611.0,81606.0,0.012254]
[1743415223283,0.0191873,81609.0,81607.0,0.12260386]
[1743415223485,0.3,81608.0,81607.0,0.12260386]
[1743415223944,0.545074,81608.0,81607.0,0.12260386]
[1743415224111,0.3,81608.0,81607.0,0.12260386]
[1743415224283,0.0191873,81609.0,81608.0,0.257327]
[1743415224606,0.0191873,81609.0,81608.0,0.26832386]
[1743415224815,0.557349,81601.0,81600.0,0.00151313]
[1743415225013,0.557349,81601.0,81600.0,0.00051313]
[1743415226361,0.557349,81601.0,81600.0,0.00251313]
[1743415226973,0.545095,81601.0,81600.0,0.00251313]
[1743415227292,0.3,81601.0,81600.0,0.12511699]
[1743415227500,0.545095,81601.0,81600.0,0.12311699]
[1743415227723,0.557349,81601.0,81600.0,0.12311699]
[1743415228882,0.557349,81601.0,81600.0,0.12511699]
[1743415229219,0.545095,81601.0,81600.0,0.12511699]
[1743415229418,0.557349,81601.0,81600.0,0.12411699]
[1743415229555,0.557349,81601.0,81600.0,0.12611699]
[1743415230475,0.57653756,81601.0,81600.0,0.12611699]
[1743415230871,0.56428356,81601.0,81600.0,0.12611699]
[1743415231642,0.31918856,81601.0,81600.0,0.37121499]
[1743415231964,0.01918856,81601.0,81600.0,0.13837099]
[1743415232157,0.01918856,81601.0,81600.0,0.38346899]
[1743415232363,0.01918856,81601.0,81600.0,0.43106899]
[1743415232522,0.01918856,81601.0,81600.0,0.51036899]
[1743415233280,0.01918856,81601.0,81600.0,0.50836899]
[1743415233750,0.01918856,81601.0,81600.0,0.51136899]
[1743415235274,0.01918856,81601.0,81600.0,0.51036899]
[1743415236042,0.01918856,81601.0,81600.0,0.51236899]
[1743415236869,0.3,81606.0,81605.0,0.257337]
[1743415237084,0.00968402,81611.0,81610.0,0.257321]
[1743415237286,0.00968402,81611.0,81610.0,0.37992486]
[1743415237487,0.245042,81619.0,81613.0,0.245057]
[1743415237719,0.312252,81618.0,81614.0,0.51337686]
[1743415237929,0.545052,81615.0,81614.0,0.26832386]
[1743415238131,0.557304,81615.0,81614.0,0.26832386]
[1743415239080,0.3,81616.0,81614.0,0.26832386]
[1743415239275,0.54505,81616.0,81614.0,0.26832386]
[1743415239586,0.245052,81615.0,81614.0,0.26832386]
[1743415240013,0.257304,81615.0,81614.0,0.26832386]
[1743415240375,0.26423774,81615.0,81614.0,0.26832386]
[1743415241420,0.27648974,81615.0,81614.0,0.26832386]
[1743415241762,0.01918574,81615.0,81614.0,0.26832386]
[1743415241999,0.26423774,81615.0,81614.0,0.26832386]
[1743415242204,0.27648974,81615.0,81614.0,0.26832386]
[1743415243021,0.27648974,81615.0,81614.0,0.001]
[1743415243983,0.012254,81601.0,81600.0,0.00051313]
[1743415244215,0.632549,81601.0,81600.0,0.00051313]
[1743415244733,0.65173901,81601.0,81600.0,0.00051313]
[1743415245295,0.65173901,81601.0,81600.0,0.00251313]
[1743415245481,0.65173901,81601.0,81600.0,0.00351313]
[1743415245681,0.65173901,81601.0,81600.0,0.00151313]
[1743415246111,0.65173901,81601.0,81600.0,0.00351313]
[1743415246112,0.57653901,81601.0,81600.0,0.00351313]
[1743415247503,0.557349,81601.0,81600.0,0.00351313]
[1743415249227,0.557349,81601.0,81600.0,0.00251313]
[1743415249427,0.557349,81601.0,81600.0,0.00051313]
[1743415249634,0.557349,81601.0,81600.0,0.00151313]
[1743415250363,0.557349,81601.0,81600.0,0.00051313]
[1743415250498,0.57653885,81601.0,81600.0,0.00051313]
[1743415250908,0.31918985,81601.0,81600.0,0.00051313]
[1743415251115,0.01918985,81601.0,81600.0,0.57358899]
[1743415251522,0.01918985,81601.0,81600.0,0.57258899]
[1743415252043,0.01918985,81601.0,81600.0,0.57358899]
[1743415252357,0.01918985,81601.0,81600.0,1.79596526]
[1743415252561,0.3,81609.0,81604.0,0.245085]
[1743415252820,0.245068,81610.0,81600.0,1.79596526]
[1743415252821,0.3,81606.0,81605.0,0.12260386]
[1743415253035,0.01918749,81607.0,81605.0,0.37994086]
[1743415253347,0.01918749,81607.0,81606.0,0.336834]
[1743415253662,0.01918749,81607.0,81606.0,0.45943786]
[1743415254221,0.00997645,81617.0,81616.0,0.257301]
[1743415254423,0.245033,81622.0,81618.0,0.245041]
[1743415254583,0.545035,81621.0,81619.0,0.12260386]
[1743415254787,0.25545813,81621.0,81619.0,0.12260386]
[1743415255217,0.26770913,81621.0,81619.0,0.12260386]
[1743415255960,0.3,81620.0,81619.0,0.12360386]
[1743415256169,0.545037,81620.0,81619.0,0.12360386]
[1743415256959,0.25545813,81621.0,81619.0,0.12360386]
[1743415257161,0.01042313,81621.0,81620.0,0.334788]
[1743415257486,0.3,81623.0,81622.0,0.257282]
[1743415257696,0.3,81623.0,81622.0,0.37988586]
[1743415257877,0.01014615,81623.0,81622.0,0.37988586]
[1743415258073,0.3,81630.0,81629.0,0.24501]
[1743415258280,0.3,81630.0,81629.0,0.36761386]
[1743415258478,0.3,81630.0,81629.0,0.12260386]
[1743415258880,0.312249,81635.0,81629.0,0.36761386]
[1743415259232,0.257254,81631.0,81630.0,0.14568]
[1743415260356,0.557257,81630.0,81629.0,0.00347313]
[1743415260976,0.557257,81630.0,81629.0,0.00247313]
[1743415261471,0.3,81630.0,81629.0,0.00247313]
[1743415261706,0.545007,81630.0,81629.0,0.00247313]
[1743415261908,0.557257,81630.0,81629.0,0.00147313]
[1743415262518,0.01918232,81631.0,81629.0,0.24648313]
[1743415262706,0.01918232,81631.0,81630.0,0.257257]
[1743415263313,0.01918232,81631.0,81629.0,0.12607699]
[1743415263314,0.257257,81630.0,81629.0,0.00347313]
[1743415263612,0.557257,81630.0,81629.0,0.00147313]
[1743415263913,0.557257,81630.0,81629.0,0.00047313]
[1743415265304,0.606557,81630.0,81629.0,0.00247313]
[1743415265508,0.606557,81630.0,81629.0,0.00347313]
[1743415266450,0.557257,81630.0,81629.0,0.00347313]
[1743415266659,0.3,81630.0,81629.0,0.00347313]
[1743415266859,0.3,81630.0,81629.0,0.38333699]
[1743415267015,0.3,81630.0,81629.0,0.12607699]
[1743415267223,0.557257,81630.0,81629.0,0.12507699]
[1743415267878,0.557257,81630.0,81629.0,0.00247313]
[1743415268097,0.633457,81630.0,81629.0,0.00047313]
[1743415268300,1.046857,81630.0,81629.0,0.00247313]
[1743415268511,1.046857,81630.0,81629.0,0.00047313]
[1743415268908,1.046857,81630.0,81629.0,0.00147313]
[1743415269387,0.7134,81630.0,81629.0,0.24648313]
[1743415269511,0.7134,81630.0,81629.0,0.38133699]
[1743415269713,0.7134,81630.0,81629.0,0.38033699]
[1743415270359,0.4134,81630.0,81629.0,0.38033699]
[1743415271457,0.4134,81630.0,81629.0,0.38333699]
[1743415272532,0.4134,81630.0,81629.0,0.38733699]
[1743415273553,0.01918095,81633.0,81632.0,0.257251]
[1743415273756,0.01918095,81633.0,81632.0,1.60323113]
[1743415274749,0.01009454,81636.0,81635.0,0.257241]
[1743415274896,0.01009454,81636.0,81635.0,0.52720486]
[1743415275249,0.01917862,81643.0,81642.0,0.257219]
[1743415275473,0.01917862,81643.0,81642.0,0.37982286]
[1743415275677,0.0297041,81643.0,81642.0,0.37982286]
[1743415276469,0.0297041,81643.0,81642.0,0.38282286]
[1743415277438,0.01052548,81643.0,81642.0,0.38282286]
[1743415277682,0.544954,81648.0,81644.0,0.244963]
[1743415277881,0.244958,81647.0,81644.0,0.36756686]
[1743415278093,0.544962,81645.0,81644.0,0.12260386]
[1743415278296,0.3,81645.0,81644.0,0.12260386]
[1743415278957,0.3,81645.0,81644.0,0.36756886]
[1743415279308,0.3105562,81645.0,81644.0,0.36756886]
[1743415279528,0.3105562,81645.0,81644.0,0.38181686]
[1743415279661,0.3105562,81645.0,81644.0,0.38381686]
[1743415280565,0.0105562,81645.0,81644.0,0.38381686]
[1743415280812,0.02117812,81654.0,81653.0,0.244938]
[1743415281407,0.02117812,81654.0,81652.0,0.257188]
[1743415281815,0.02117812,81654.0,81653.0,0.244938]
[1743415282009,0.03145329,81654.0,81653.0,0.246938]
[1743415282267,0.03145329,81654.0,81653.0,0.38378786]
[1743415282466,0.03145329,81654.0,81653.0,0.38178786]
[1743415283170,0.02117812,81654.0,81653.0,0.39432871]
[1743415283380,0.002,81654.0,81653.0,0.47372871]
[1743415284590,0.002,81654.0,81653.0,0.48272871]
[1743415284792,0.002,81654.0,81653.0,0.47972871]
[1743415285194,0.002,81654.0,81653.0,0.48572871]
[1743415285878,0.002,81654.0,81653.0,0.47972871]
[1743415287061,0.002,81654.0,81653.0,0.48572871]
[1743415288733,0.002,81654.0,81653.0,0.53522871]
[1743415290269,0.002,81654.0,81653.0,0.52922871]
[1743415290494,1e-06,81654.0,81653.0,0.52922871]
[1743415290742,1e-06,81654.0,81653.0,0.53422871]
[1743415290953,1e-06,81654.0,81653.0,0.54022871]
[1743415291370,1e-06,81654.0,81653.0,0.52822871]
[1743415291688,1e-06,81654.0,81653.0,0.54022871]
[1743415292103,1e-06,81654.0,81653.0,0.53422871]
[1743415292330,1e-06,81654.0,81653.0,0.54022871]
[1743415293195,1e-06,81669.0,81668.0,0.384937]
[1743415293419,1e-06,81669.0,81668.0,1.89209798]
[1743415294346,1e-06,81669.0,81668.0,1.89809798]
[1743415294543,1e-06,81669.0,81668.0,1.89852003]
[1743415294909,1e-06,81669.0,81668.0,1.75188003]
[1743415295081,1e-06,81669.0,81668.0,1.89836003]
[1743415295610,1e-06,81669.0,81668.0,1.90436003]
[1743415296547,1e-06,81669.0,81668.0,1.75788003]
[1743415296703,1e-06,81669.0,81668.0,1.90420003]
[1743415296903,1e-06,81669.0,81668.0,1.63008003]
[1743415297079,1e-06,81669.0,81668.0,1.77640003]
[1743415297624,1e-06,81669.0,81668.0,1.77040003]
[1743415298163,1e-06,81669.0,81668.0,1.76205918]
[1743415298777,1e-06,81669.0,81668.0,1.75605918]
[1743415298954,1e-06,81669.0,81668.0,1.76205918]
[1743415299353,1e-06,81669.0,81668.0,1.75005918]
[1743415299554,1e-06,81669.0,81668.0,1.75605918]
[1743415299758,1e-06,81669.0,81668.0,1.76105918]
[1743415299958,1e-06,81669.0,81668.0,1.77560003]
[1743415300361,1e-06,81669.0,81668.0,1.85430003]
[1743415300560,1e-06,81669.0,81668.0,2.49006003]
[1743415300963,1e-06,81669.0,81668.0,2.34354003]
[1743415301168,1e-06,81669.0,81668.0,2.41116003]
[1743415301365,1e-06,81669.0,81668.0,2.41112003]
[1743415306692,1e-06,81669.0,81668.0,2.40512003]
[1743415307133,1e-06,81669.0,81668.0,2.40612003]
[1743415307336,1e-06,81669.0,81668.0,2.41212003]
[1743415307594,1e-06,81669.0,81668.0,2.40612003]
[1743415307840,1e-06,81669.0,81668.0,2.41212003]
[1743415308544,1e-06,81669.0,81668.0,2.38612803]
[1743415308749,1e-06,81669.0,81668.0,2.39837203]
[1743415310907,1e-06,81669.0,81668.0,2.40437203]
[1743415311311,1e-06,81669.0,81668.0,2.25809203]
[1743415311515,1e-06,81669.0,81668.0,2.40781203]
[1743415312275,1e-06,81669.0,81668.0,2.40789203]
[1743415313802,1e-06,81669.0,81668.0,2.14376218]
[1743415314003,1e-06,81669.0,81668.0,2.14380218]
[1743415314202,0.01917122,81669.0,81668.0,2.14380218]
[1743415314586,0.01917122,81669.0,81668.0,2.13780218]
[1743415314831,0.01917122,81669.0,81668.0,2.38269518]
[1743415315043,0.01917122,81669.0,81668.0,2.38669518]
[1743415315403,0.01917122,81669.0,81668.0,2.14180218]
[1743415316045,0.01917122,81669.0,81668.0,2.13580218]
[1743415316249,0.26406122,81669.0,81668.0,0.91542591]
[1743415316460,0.57630522,81669.0,81668.0,0.64318205]
[1743415316656,0.65220522,81669.0,81668.0,0.64318205]
[1743415317538,0.633035,81669.0,81668.0,0.64318205]
[1743415318069,0.375901,81669.0,81668.0,0.13002591]
[1743415318831,0.300001,81669.0,81668.0,0.13002591]
[1743415319033,0.300001,81669.0,81668.0,0.37491891]
[1743415320484,0.31917327,81669.0,81668.0,0.37491891]
[1743415320920,0.57630727,81669.0,81668.0,0.00742205]
[1743415321119,0.31917327,81669.0,81668.0,0.13002591]
[1743415321475,0.56406327,81669.0,81668.0,0.13002591]
[1743415321677,0.57630727,81669.0,81668.0,0.13002591]
[1743415321934,0.57630727,81669.0,81668.0,0.00742205]
[1743415322388,0.31917327,81669.0,81668.0,0.25231505]
[1743415322586,0.31917327,81669.0,81668.0,0.00742205]
[1743415322913,0.31917327,81669.0,81668.0,0.13002591]
[1743415323529,0.56406327,81669.0,81668.0,0.13002591]
[1743415323940,0.57630727,81669.0,81668.0,0.13002591]
[1743415324139,0.31917327,81669.0,81668.0,0.13002591]
[1743415324389,0.31917327,81669.0,81668.0,0.37491891]
[1743415324759,0.31917327,81669.0,81668.0,0.13002591]
[1743415325583,0.56406327,81669.0,81668.0,0.13002591]
[1743415325955,0.31917327,81669.0,81668.0,0.37491891]
[1743415326157,0.31917327,81669.0,81668.0,0.38716291]
[1743415326384,0.31917327,81669.0,81668.0,0.40385535]
[1743415326590,0.56406327,81669.0,81668.0,0.13002591]
[1743415326790,0.31917327,81669.0,81668.0,0.37491891]
[1743415326966,0.31917327,81669.0,81668.0,0.13002591]
[1743415327145,0.56406327,81669.0,81668.0,0.13002591]
[1743415327343,0.300001,81669.0,81668.0,0.13002591]
[1743415327575,0.544891,81669.0,81668.0,0.13002591]
[1743415328398,0.300001,81669.0,81668.0,0.13002591]
[1743415329203,0.544891,81669.0,81668.0,0.13002591]
[1743415329627,0.557135,81669.0,81668.0,0.13002591]
[1743415330221,0.557135,81669.0,81668.0,0.00742205]
[1743415330827,0.300001,81669.0,81668.0,0.38716291]
[1743415331589,1e-06,81669.0,81668.0,0.40170376]
[1743415332255,1e-06,81669.0,81668.0,0.48000376]
[1743415332455,1e-06,81669.0,81668.0,0.47600376]
[1743415332634,1e-06,81669.0,81668.0,0.54442376]